bitfinex/quotes_SOLUSD_20251009
["timestamp","ask_amount","ask_price","bid_price","bid_amount"]
[1759992167297,12.15818329,228.23,228.19,4.38231298]
[1759992167501,12.15818329,228.23,228.2,0.72]
[1759992167922,12.15818329,228.23,228.21,0.72]
[1759992169024,12.15818329,228.23,228.19,0.72]
[1759992169215,12.15818329,228.23,228.2,0.72]
[1759992170041,12.15818329,228.23,228.2,5.10210575]
[1759992170524,1.29685288,228.21,228.16,0.72]
[1759992170726,1.29685288,228.21,228.17,0.72]
[1759992171327,13.15991489,228.2,228.18,0.72]
[1759992171717,13.15991489,228.2,228.16,0.72]
[1759992171920,13.15991489,228.2,228.17,0.72]
[1759992172228,13.15991489,228.2,228.18,0.72]
[1759992172833,13.15991489,228.2,228.15,0.72]
[1759992173025,13.15991489,228.2,228.16,0.72]
[1759992173532,13.15991489,228.2,228.17,0.72]
[1759992173725,13.15991489,228.2,228.17,4.38269151]
[1759992173932,13.15991489,228.2,228.18,0.72]
[1759992176726,1.29685288,228.25,228.18,2.01685288]
[1759992176928,4.3828892,228.21,228.18,0.72]
[1759992177535,4.3828892,228.21,228.19,0.72]
[1759992178130,4.3828892,228.21,228.17,5.67939344]
[1759992178131,4.3828892,228.21,228.2,0.72]
[1759992179724,4.3828892,228.21,228.18,2.01685288]
[1759992179915,4.3828892,228.21,228.19,2.01685288]
[1759992180118,4.3828892,228.21,228.2,0.72]
[1759992180537,4.3828892,228.21,228.16,0.72]
[1759992180538,8.76481812,228.21,228.16,0.72]
[1759992180716,10.061671,228.21,228.16,0.72]
[1759992180916,5.6787818,228.21,228.16,0.72]
[1759992181331,13.16106955,228.2,228.16,0.72]
[1759992181717,14.45792243,228.2,228.14,1.29685288]
[1759992181918,18.84005013,228.2,228.16,0.72]
[1759992182121,4.3821277,228.2,228.16,0.72]
[1759992182325,10.95356242,228.24,228.16,0.72]
[1759992182326,5.67877965,228.22,228.16,0.72]
[1759992182620,13.16106955,228.19,228.16,0.72]
[1759992184739,13.16106955,228.19,228.17,0.72]
[1759992185043,13.16106955,228.19,228.18,0.72]
[1759992185223,13.16106955,228.19,228.16,5.67972323]
[1759992185432,13.16106955,228.19,228.17,0.72]
[1759992189847,13.16106955,228.19,228.15,6.36990481]
[1759992190036,13.16106955,228.19,228.16,0.69]
[1759992192924,13.16106955,228.19,228.17,0.69]
[1759992193129,13.16106955,228.19,228.18,1.29685288]
[1759992193352,13.16106955,228.19,228.18,1.98685288]
[1759992194454,4.38156815,228.23,228.18,6.3693564]
[1759992194634,10.95808047,228.22,228.19,1.98685288]
[1759992196042,10.95808047,228.22,228.19,1.29685288]
[1759992196348,10.95808047,228.22,228.2,1.98685288]
[1759992196849,10.95808047,228.22,228.16,0.69]
[1759992197068,10.95808047,228.22,228.19,1.29685288]
[1759992198745,15.33985049,228.22,228.18,1.98685288]
[1759992198949,15.33985049,228.22,228.18,0.69]
[1759992199158,4.38177002,228.22,228.18,0.69]
[1759992199449,4.38288687,228.21,228.16,0.69]
[1759992199654,5.67973975,228.21,228.16,0.69]
[1759992199835,4.38288687,228.21,228.17,0.69]
[1759992200158,5.6786229,228.22,228.15,5.67993418]
[1759992200460,5.6786229,228.22,228.16,1.29685288]
[1759992200956,15.33497475,228.21,228.16,1.29685288]
[1759992201252,15.33497475,228.21,228.17,0.69]
[1759992201470,4.38200055,228.21,228.17,0.69]
[1759992201944,4.3830813,228.2,228.17,0.69]
[1759992203459,8.76524277,228.2,228.16,1.29685288]
[1759992203658,8.76524277,228.2,228.16,1.98685288]
[1759992203859,4.38216147,228.2,228.16,1.98685288]
[1759992204246,10.9529742,228.19,228.16,1.98685288]
[1759992206352,4.38173692,228.22,228.17,1.29685288]
[1759992206548,10.9529742,228.2,228.18,1.29685288]
[1759992209674,10.9529742,228.2,228.17,1.98685288]
[1759992210055,10.9529742,228.2,228.17,1.29685288]
[1759992210854,1.29685288,228.18,228.11,5.07384989]
[1759992211171,1.29685288,228.17,228.11,6.37070277]
[1759992211560,13.16280192,228.16,228.12,1.29685288]
[1759992211870,13.16280192,228.16,228.11,1.98685288]
[1759992212068,13.16280192,228.16,228.12,1.98685288]
[1759992212272,13.16280192,228.16,228.13,0.69]
[1759992212577,13.16280192,228.16,228.14,0.69]
[1759992212780,13.16280192,228.16,228.13,1.29685288]
[1759992212952,13.16280192,228.16,228.15,0.69]
[1759992213149,13.16280192,228.16,228.15,1.98685288]
[1759992213354,4.38261364,228.18,228.15,1.98685288]
[1759992213581,10.9600317,228.17,228.16,0.69]
[1759992213773,10.9600317,228.17,228.16,1.98685288]
[1759992214089,10.9600317,228.17,228.16,2.71915192]
[1759992214564,4.38231298,228.19,228.16,2.71915192]
[1759992215074,10.9600317,228.18,228.16,0.69]
[1759992215661,10.9600317,228.18,228.14,0.69]
[1759992215878,10.9600317,228.18,228.14,0.66]
[1759992216181,15.34261882,228.18,228.14,0.66]
[1759992216776,4.38258712,228.18,228.14,0.66]
[1759992216992,4.38343231,228.17,228.14,0.66]
[1759992222185,4.38343231,228.17,228.13,4.38344582]
[1759992222377,4.38343231,228.17,228.15,0.66]
[1759992224484,4.38343231,228.17,228.13,4.38344582]
[1759992224683,4.38343231,228.17,228.14,0.67]
[1759992224985,8.76617696,228.17,228.14,0.67]
[1759992225784,10.79532888,228.17,228.11,2.02915192]
[1759992225969,10.79532888,228.17,228.11,0.67]
[1759992228792,10.79532888,228.17,228.07,42.63766361]
[1759992228793,2.02915192,228.12,228.03,0.2]
[1759992228970,2.02915192,228.05,228.03,0.2]
[1759992229479,3.78511671,228.05,228.03,0.2]
[1759992230582,34.56511671,228.05,228.03,0.2]
[1759992230778,38.95011999,228.05,228.03,0.2]
[1759992233890,8.17011999,228.05,228.03,0.2]
[1759992234092,38.97011999,228.05,228.03,0.2]
[1759992244593,49.8465952,228.05,228.04,1e-08]
[1759992245685,49.8465952,228.05,228.02,0.2]
[1759992245686,10.87647521,228.04,228.02,1e-08]
[1759992245892,34.85830384,228.03,228.02,1e-08]
[1759992246199,31.67647521,227.99,227.98,0.2]
[1759992246406,64.50562713,227.99,227.98,0.2]
[1759992246706,64.50562713,227.99,227.97,0.2]
[1759992246907,17.2919768,227.98,227.97,0.2]
[1759992247403,12.90562713,227.97,227.96,0.2]
[1759992247705,43.70562713,227.97,227.96,0.2]
[1759992248095,45.46274896,227.97,227.96,0.2]
[1759992249287,49.84929104,227.97,227.96,0.2]
[1759992249605,49.84929104,227.97,227.96,1e-08]
[1759992251291,49.84929104,227.97,227.93,0.2]
[1759992251292,138.9871194,227.94,227.93,0.2]
[1759992251489,58.01627133,227.94,227.93,0.2]
[1759992251998,59.77354755,227.94,227.93,0.2]
[1759992253310,70.65002276,227.94,227.93,0.2]
[1759992254022,10.87647521,227.93,227.91,0.1]
[1759992254321,12.90562713,227.89,227.85,0.1]
[1759992254530,43.70562713,227.89,227.85,0.1]
[1759992254823,43.70562713,227.89,227.86,0.67]
[1759992254997,43.70562713,227.89,227.85,0.1]
[1759992255202,45.46352117,227.89,227.85,0.1]
[1759992255414,49.85160313,227.89,227.85,0.1]
[1759992256306,49.85160313,227.89,227.88,1e-08]
[1759992258035,33.70562713,227.86,227.85,1e-08]
[1759992258208,64.50562713,227.86,227.85,1e-08]
[1759992258727,66.26367569,227.86,227.85,1e-08]
[1759992259328,33.43452377,227.86,227.85,0.67000001]
[1759992259505,55.38720048,227.86,227.85,0.67000001]
[1759992259705,59.77586018,227.86,227.85,0.67000001]
[1759992260015,59.77586018,227.86,227.85,1e-08]
[1759992260634,70.65233539,227.86,227.85,1e-08]
[1759992261716,70.65233539,227.86,227.83,1e-08]
[1759992261717,81.62398464,227.86,227.83,1e-08]
[1759992261914,10.87647521,227.83,227.81,1e-08]
[1759992262113,66.53477905,227.82,227.7,0.1]
[1759992262308,12.90562713,227.8,227.77,0.67]
[1759992262504,30.8,227.8,227.7,2.12915192]
[1759992262711,32.82915192,227.8,227.7,2.12915192]
[1759992262909,34.95830384,227.8,227.7,2.12915192]
[1759992263225,34.95830384,227.8,227.79,0.77]
[1759992263414,24.95830384,227.8,227.79,0.77]
[1759992263930,60.16811946,227.8,227.79,0.77]
[1759992264317,29.34811946,227.8,227.79,0.77]
[1759992264518,60.16811946,227.8,227.79,0.77]
[1759992265913,29.34811946,227.8,227.79,0.77]
[1759992266111,60.16811946,227.8,227.79,0.77]
[1759992266928,20.8,227.76,227.74,0.67]
[1759992267229,32.84915192,227.75,227.74,0.67]
[1759992267733,32.84915192,227.75,227.7,0.1]
[1759992267734,34.60774153,227.75,227.7,0.1]
[1759992267921,2.02915192,227.74,227.7,0.77]
[1759992268233,2.02915192,227.74,227.71,0.67]
[1759992268412,3.7879735,227.74,227.71,0.67]
[1759992268613,3.7879735,227.74,227.7,0.1]
[1759992269122,8.17894566,227.74,227.7,0.77]
[1759992270234,19.05542087,227.74,227.7,0.77]
[1759992273623,21.08457279,227.74,227.73,1e-08]
[1759992273818,31.67647521,227.71,227.7,0.1]
[1759992274023,69.02300796,227.71,227.7,0.1]
[1759992274521,64.25583832,227.71,227.7,0.1]
[1759992274716,70.78237107,227.71,227.7,0.1]
[1759992275829,44.35392172,227.71,227.7,0.1]
[1759992276142,75.17392172,227.71,227.7,1e-08]
[1759992276348,78.08001875,227.71,227.7,1e-08]
[1759992276650,75.17392172,227.71,227.7,1e-08]
[1759992281036,44.35392172,227.71,227.7,1e-08]
[1759992281236,78.0811101,227.71,227.7,1e-08]
[1759992282446,78.1011101,227.71,227.7,0.72000001]
[1759992282647,39.13269552,227.71,227.7,0.72000001]
[1759992282819,69.97269552,227.71,227.7,0.72000001]
[1759992283534,57.79091376,227.71,227.7,0.72000001]
[1759992283732,59.09622031,227.71,227.7,0.72000001]
[1759992289040,57.79091376,227.71,227.7,0.72000001]
[1759992289349,59.09622031,227.71,227.7,0.72000001]
[1759992291236,23.86466966,227.71,227.7,0.72000001]
[1759992291434,52.92530655,227.71,227.7,0.72000001]
[1759992291663,32.12530655,227.71,227.7,0.72000001]
[1759992292251,36.5168572,227.71,227.7,0.72000001]
[1759992293856,1.75882158,227.72,227.7,0.72000001]
[1759992294066,30.82,227.72,227.7,0.72000001]
[1759992294448,1.30530655,227.75,227.7,5.11167975]
[1759992294681,30.82,227.74,227.71,0.7]
[1759992295360,1.30530655,227.76,227.71,0.7]
[1759992295544,32.12530655,227.75,227.71,0.7]
[1759992295856,20.8,227.72,227.71,0.7]
[1759992296063,52.92530655,227.72,227.71,0.7]
[1759992296435,32.12530655,227.72,227.71,0.7]
[1759992296863,36.51666435,227.72,227.71,0.7]
[1759992298164,20.8,227.74,227.71,0.7]
[1759992298346,30.82,227.73,227.71,0.7]
[1759992298551,1.30530655,227.72,227.7,1e-08]
[1759992299256,1.30530655,227.72,227.71,0.7]
[1759992300258,5.69666435,227.72,227.7,1e-08]
[1759992300566,32.12530655,227.71,227.7,0.70000001]
[1759992301066,166.92530655,227.71,227.7,0.70000001]
[1759992301257,171.3168572,227.71,227.7,1e-08]
[1759992301566,170.01155065,227.71,227.7,1e-08]
[1759992301766,171.3168572,227.71,227.7,1e-08]
[1759992303167,171.3168572,227.71,227.7,0.70000001]
[1759992303749,171.3168572,227.71,227.7,1e-08]
[1759992304152,171.3168572,227.71,227.7,0.70000001]
[1759992305247,165.62,227.71,227.7,0.70000001]
[1759992305472,170.01155065,227.71,227.7,0.70000001]
[1759992305776,171.3168572,227.71,227.7,0.70000001]
[1759992306074,171.3168572,227.71,227.7,1e-08]
[1759992307259,140.4968572,227.71,227.7,1e-08]
[1759992307460,134.8,227.71,227.7,1.99530656]
[1759992308972,30.82,227.73,227.7,1.99530656]
[1759992309174,139.19100489,227.74,227.7,1.99530656]
[1759992309364,30.84,227.73,227.71,0.69]
[1759992311089,134.8,227.74,227.72,1.30530655]
[1759992311374,134.8,227.74,227.71,0.69]
[1759992311375,30.84,227.78,227.73,1.99530655]
[1759992311575,134.8,227.79,227.73,1.99530655]
[1759992311576,134.8,227.79,227.74,0.69]
[1759992311777,134.8,227.79,227.76,1.30530655]
[1759992312080,134.8,227.79,227.77,0.69]
[1759992312961,134.8,227.79,227.77,1.99530655]
[1759992313276,134.8,227.79,227.78,1.30530655]
[1759992313451,30.84,227.84,227.78,1.99530655]
[1759992313656,30.86,227.84,227.79,1.99530655]
[1759992313974,1.30530655,227.83,227.8,0.69]
[1759992314174,1.30530655,227.83,227.81,0.69]
[1759992315171,5.69460044,227.83,227.81,0.69]
[1759992316188,36.55435652,227.84,227.81,0.69]
[1759992316567,32.16530655,227.84,227.81,0.69]
[1759992316784,20.8,227.86,227.82,0.69]
[1759992316992,51.64,227.86,227.82,1.99530655]
[1759992317219,1.30530655,227.83,227.73,10.97791244]
[1759992317392,135.48,227.85,227.79,0.69]
[1759992317393,30.84,227.84,227.79,0.69]
[1759992317576,30.84,227.84,227.79,1.99530655]
[1759992317779,165.68,227.85,227.8,1.30530655]
[1759992317973,134.8,227.85,227.81,1.99530655]
[1759992318184,134.8,227.85,227.82,0.69]
[1759992318589,1.30530655,227.84,227.8,0.69]
[1759992318892,134.8,227.85,227.81,0.69]
[1759992320594,139.18888207,227.85,227.81,0.69]
[1759992320796,140.49418862,227.85,227.81,0.69]
[1759992321400,32.18530655,227.84,227.78,5.08004248]
[1759992321694,32.18530655,227.84,227.77,0.69]
[1759992321695,1.30530655,227.82,227.77,0.69]
[1759992321869,30.88,227.82,227.77,1.99530655]
[1759992322070,30.88,227.82,227.78,0.69]
[1759992322770,134.8,227.85,227.8,1.30530655]
[1759992323078,165.7,227.85,227.81,0.69]
[1759992323288,165.7,227.85,227.82,0.69]
[1759992323489,165.7,227.85,227.83,0.69]
[1759992323671,134.8,227.85,227.83,0.69]
[1759992324470,134.8,227.85,227.84,0.69]
[1759992324676,134.8,227.85,227.82,1.30530655]
[1759992324677,134.8,227.85,227.82,0.69]
[1759992326491,134.8,227.85,227.81,4.38960832]
[1759992326683,134.8,227.85,227.83,0.69]
[1759992327080,136.10530655,227.85,227.8,4.38979532]
[1759992327287,134.8,227.85,227.81,0.69]
[1759992327480,134.8,227.85,227.82,4.38943025]
[1759992327680,134.8,227.85,227.83,0.69]
[1759992327888,134.8,227.85,227.84,0.69]
[1759992328810,134.8,227.97,227.85,20.8]
[1759992328979,134.8,227.97,227.91,1.30530655]
[1759992329182,31.12,227.96,227.91,0.69]
[1759992329381,35.50673805,227.96,227.91,0.69]
[1759992329683,31.12,227.96,227.91,0.69]
[1759992329991,31.12,227.96,227.91,5.07769504]
[1759992330194,31.12,227.96,227.92,0.69]
[1759992330508,31.12,227.96,227.91,4.38769504]
[1759992330680,31.12,227.96,227.91,5.07769504]
[1759992331183,35.50675632,227.96,227.91,0.69]
[1759992331388,36.18675632,227.96,227.91,0.69]
[1759992331685,36.18675632,227.96,227.92,1.30530655]
[1759992333385,36.18675632,227.96,227.9,4.38787563]
[1759992333704,36.18675632,227.96,227.92,1.30530655]
[1759992334086,35.50675632,227.96,227.92,1.30530655]
[1759992334480,134.8,227.95,227.92,1.30530655]
[1759992335908,134.8,227.95,227.92,2.03329665]
[1759992336406,134.8,227.95,227.93,2.03329665]
[1759992339089,134.8,227.95,227.94,0.68]
[1759992339293,134.8,227.95,227.94,2.71329665]
[1759992339984,134.8,227.95,227.94,2.03329665]
[1759992342096,0.2,227.96,227.94,7.10038276]
[1759992342413,0.2,227.96,227.95,2.71329665]
[1759992342784,0.2,227.96,227.95,2.03329665]
[1759992343212,0.2,227.96,227.95,2.71329665]
[1759992346311,0.2,227.96,227.95,7.1002236]
[1759992358321,0.2,227.96,227.92,13.00193041]
[1759992358322,0.2,227.96,227.89,20.8]
[1759992358623,0.92,227.96,227.92,2.03329665]
[1759992358926,0.2,227.96,227.95,2.03329665]
[1759992359427,0.2,227.96,227.95,2.71329665]
[1759992360524,0.2,227.96,227.95,7.1002236]
[1759992361037,0.2,227.96,227.95,17.97669881]
[1759992362124,0.2,227.96,227.95,48.87669881]
[1759992362929,0.2,227.96,227.95,17.97669881]
[1759992363143,0.2,227.96,227.95,48.87669881]
[1759992363316,134.8,228.07,228.05,2.03329665]
[1759992363911,134.8,228.07,228.06,2.71329665]
[1759992364111,134.8,228.07,228.06,2.03329665]
[1759992364335,134.8,228.07,228.06,2.71329665]
[1759992364835,134.8,228.07,228.06,2.03329665]
[1759992365237,134.8,228.07,228.06,6.41810766]
[1759992365830,134.8,228.07,228.06,7.09810766]
[1759992366413,0.2,228.08,228.06,7.09810766]
[1759992366613,0.2,228.08,228.07,33.58329665]
[1759992367332,0.2,228.08,228.07,37.9679154]
[1759992369319,0.2,228.08,228.07,48.84439061]
[1759992369531,0.2,228.08,228.07,35.95461875]
[1759992369830,0.2,228.08,228.07,37.9879154]
[1759992372845,0.2,228.08,228.07,48.86439061]
[1759992378520,0.2,228.08,228.07,15.93109396]
[1759992378844,0.2,228.08,228.07,58.0979154]
[1759992380041,0.2,228.08,228.07,58.7679154]
[1759992380838,0.2,228.08,228.07,69.64439061]
[1759992381755,0.2,228.09,228.07,69.64439061]
[1759992382045,0.2,228.09,228.08,2.70329665]
[1759992382424,0.2,228.09,228.08,37.96772316]
[1759992387356,0.2,228.09,228.08,7.08772316]
[1759992387546,0.2,228.09,228.08,37.94772316]
[1759992387942,0.2,228.09,228.08,7.08772316]
[1759992388254,0.2,228.09,228.08,37.92772316]
[1759992389036,0.2,228.09,228.08,4.38442651]
[1759992389236,0.87,228.09,228.08,37.27772316]
[1759992390357,0.87,228.09,228.08,35.24442651]
[1759992390657,0.87,228.09,228.08,37.27772316]
[1759992391160,0.87,228.09,227.99,0.67]
[1759992391352,2.03329665,228.07,228.01,2.03329665]
[1759992391537,2.70329665,228.06,228.0,30.86]
[1759992391730,0.67,228.05,228.0,32.89329665]
[1759992391931,0.67,228.04,228.0,32.89329665]
[1759992392135,0.67,228.03,228.01,2.03329665]
[1759992392333,0.67,228.03,228.02,30.86]
[1759992393051,0.67,228.03,228.01,30.86]
[1759992393250,0.67,228.03,228.0,6.41924252]
[1759992393549,0.67,228.03,228.01,32.89329665]
[1759992394454,0.67,228.03,228.01,37.27890055]
[1759992394651,2.03329665,228.08,227.98,4.38634967]
[1759992394850,0.67,228.02,228.01,2.03329665]
[1759992395042,0.67,228.02,228.01,32.89329665]
[1759992395552,0.67,228.02,228.01,30.86]
[1759992395949,0.67,228.02,228.01,35.24577255]
[1759992397048,5.68507035,228.07,228.01,35.24577255]
[1759992397240,0.67,228.04,228.01,36.54612508]
[1759992397436,0.67,228.03,228.01,36.54612508]
[1759992397643,139.18488375,228.06,228.01,32.18035253]
[1759992397956,0.67,228.02,228.01,32.18035253]
[1759992398860,134.8,228.06,228.01,32.18035253]
[1759992399160,134.8,228.06,228.04,1.30035253]
[1759992399658,134.8,228.06,228.05,1.30035253]
[1759992400269,134.8,228.06,228.05,32.88035253]
[1759992400758,134.8,228.06,228.05,37.26535581]
[1759992401267,0.2,228.09,228.05,37.26535581]
[1759992401443,0.67,228.08,228.05,32.18035253]
[1759992401646,0.67,228.07,228.05,30.88]
[1759992402162,0.67,228.06,228.0,1.30035253]
[1759992402342,1.97035253,228.05,227.99,1.30035253]
[1759992402656,0.67,228.04,227.99,1.30035253]
[1759992402862,0.67,228.03,227.99,36.56644649]
[1759992403360,0.67,228.02,227.99,36.56644649]
[1759992404434,0.66,228.04,227.99,36.56644649]
[1759992404636,0.66,228.03,227.99,36.56644649]
[1759992405357,0.66,228.02,227.98,1.30035253]
[1759992405537,5.68557196,228.04,227.98,32.16035253]
[1759992405737,0.66,228.01,227.98,32.16035253]
[1759992406457,0.66,228.0,227.94,20.8]
[1759992406644,0.66,228.0,227.94,52.96035253]
[1759992406848,0.66,228.0,227.95,1.30035253]
[1759992407156,0.66,227.99,227.95,1.30035253]
[1759992407458,0.66,227.99,227.95,5.68721433]
[1759992407661,0.66,227.99,227.95,4.3868618]
[1759992411267,35.26520502,228.04,227.97,1.30035253]
[1759992411566,10.87647521,228.12,228.02,1.30035253]
[1759992411567,33.02035253,228.09,228.02,1.30035253]
[1759992411868,53.82035253,228.09,228.02,1.96035253]
[1759992412361,0.66,228.08,228.02,1.96035253]
[1759992412567,4.38467697,228.07,228.02,1.96035253]
[1759992413071,0.66,228.08,228.03,1.96035253]
[1759992413246,51.86,228.09,228.04,0.66]
[1759992413441,1.96035253,228.05,227.95,10.96701452]
[1759992413660,1.30035253,228.02,227.95,43.80736705]
[1759992413963,1.96035253,228.01,227.95,30.88]
[1759992414169,1.96035253,228.0,227.95,30.88]
[1759992414357,0.66,227.99,227.95,30.88]
[1759992414744,0.66,227.99,227.95,35.2669046]
[1759992414950,0.66,227.99,227.95,30.88]
[1759992415146,0.66,227.99,227.95,35.26691691]
[1759992415453,1.30035253,228.01,227.95,35.92691691]
[1759992416263,1.30035253,228.02,227.97,4.38654208]
[1759992416465,5.68575294,228.03,227.98,0.66]
[1759992416860,6.34575294,228.03,227.98,0.66]
[1759992417685,136.76035253,228.02,227.96,4.38670855]
[1759992418056,1.30035253,228.01,227.96,4.38670855]
[1759992418258,1.96035253,228.01,227.96,4.38670855]
[1759992418454,5.68621219,228.01,227.95,31.54]
[1759992418671,1.96035253,228.0,227.95,31.54]
[1759992419785,4.38585966,228.01,227.96,5.04666303]
[1759992419958,140.48594039,228.02,227.97,0.66]
[1759992420154,141.14594039,228.02,227.97,0.66]
[1759992420353,140.48594039,228.02,227.97,0.66]
[1759992420651,141.14594039,228.02,227.97,0.66]
[1759992421671,141.14594039,228.02,227.96,4.38666303]
[1759992422276,136.10035253,228.02,227.96,4.38666303]
[1759992422481,134.8,228.02,228.01,1.30035253]
[1759992422771,134.8,228.02,228.01,1.96035253]
[1759992424673,167.62035253,228.02,227.94,4.38706896]
[1759992424849,1.30035253,227.99,227.94,5.04706896]
[1759992425054,1.30035253,228.0,227.95,0.66]
[1759992425281,1.30035253,228.01,227.95,0.66]
[1759992425455,1.96035253,228.01,227.95,0.66]
[1759992426067,1.96035253,228.01,227.96,4.38673451]
[1759992427086,1.30035253,227.99,227.92,11.64861336]
[1759992427288,1.30035253,227.97,227.92,0.68]
[1759992427472,1.30035253,227.97,227.9,30.86]
[1759992427962,1.30035253,228.0,227.93,1.30035253]
[1759992428158,30.86,228.01,227.95,1.30035253]
[1759992428367,134.8,228.02,227.96,0.68]
[1759992428572,134.8,228.02,227.97,1.30035253]
[1759992428759,134.8,228.02,227.98,0.68]
[1759992428960,134.8,228.02,227.99,0.68]
[1759992429183,134.8,228.02,228.0,0.68]
[1759992429384,134.8,228.02,228.01,0.68]
[1759992429588,134.8,228.02,227.99,1.30035253]
[1759992429887,134.8,228.02,227.97,0.68]
[1759992430387,134.8,228.02,227.98,0.68]
[1759992430571,134.8,228.02,227.99,0.68]
[1759992430772,134.8,228.02,227.98,1.30035253]
[1759992430964,134.8,228.02,227.99,0.68]
[1759992431386,134.8,228.02,227.97,6.36689461]
[1759992431565,134.8,228.02,227.98,0.68]
[1759992432891,134.8,228.02,227.99,5.06615728]
[1759992433088,134.8,228.02,227.99,4.38615728]
[1759992433264,134.8,228.02,228.0,0.68]
[1759992433572,134.8,228.02,227.99,5.06615728]
[1759992434395,157.76035253,228.09,228.01,1.30035253]
[1759992434568,157.76035253,228.09,228.02,0.68]
[1759992434569,167.82035253,228.09,228.02,0.68]
[1759992434973,167.82035253,228.09,228.03,4.38538788]
[1759992435860,167.16035253,228.09,228.03,4.38538788]
[1759992436472,165.86,228.09,228.03,5.68574041]
[1759992438569,165.86,228.09,228.03,16.64921012]
[1759992438775,165.86,228.09,228.04,0.68]
[1759992438987,165.86,228.09,228.05,0.68]
[1759992439284,135.0,228.09,228.06,6.36516354]
[1759992440484,0.2,228.09,228.06,6.36516354]
[1759992441387,0.66,228.08,228.04,4.38502637]
[1759992441574,0.66,228.07,228.04,4.38502637]
[1759992441887,1.96035253,228.06,228.02,4.38558021]
[1759992442188,0.66,228.06,228.02,4.38558021]
[1759992442379,1.30035253,228.07,228.03,0.68]
[1759992442579,0.66,228.08,228.02,4.38558021]
[1759992443190,1.96035253,228.08,228.02,4.38558021]
[1759992446394,0.66,228.08,228.02,4.38558021]
[1759992447095,136.76035253,228.07,228.01,4.38576368]
[1759992447394,1.30035253,228.04,227.99,4.38596668]
[1759992447577,1.30035253,228.04,228.0,0.68]
[1759992448697,32.78035253,228.06,228.01,4.38577255]
[1759992450493,0.66,228.05,228.01,4.38577255]
[1759992450694,0.66,228.05,228.0,0.68]
[1759992451990,30.82,228.06,228.0,4.38594724]
[1759992452319,134.8,228.07,228.02,1.30035253]
[1759992452492,134.8,228.07,228.03,5.06538788]
[1759992454187,134.8,228.07,228.03,4.38538788]
[1759992454495,0.66,228.06,227.99,0.68]
[1759992456424,140.48499343,228.07,228.0,4.38596491]
[1759992456716,134.8,228.07,228.02,1.30035253]
[1759992456919,134.8,228.07,228.03,1.97035253]
[1759992457076,134.8,228.07,228.04,1.97035253]
[1759992457279,134.8,228.07,228.05,0.67]
[1759992457584,134.8,228.07,228.06,0.67]
[1759992457807,134.8,228.07,228.03,1.97035253]
[1759992458012,134.8,228.07,228.03,2.70107027]
[1759992458310,134.8,228.07,228.04,0.67]
[1759992458515,134.8,228.07,228.05,5.05485778]
[1759992460614,2.71107027,228.06,227.98,4.38634967]
[1759992460779,2.03107027,228.02,227.9,10.87647521]
[1759992460982,2.03107027,228.0,227.93,2.70107027]
[1759992461194,2.03107027,228.0,227.94,30.82]
[1759992461681,2.03107027,228.0,227.94,31.49]
[1759992462084,2.03107027,228.0,227.95,4.38692695]
[1759992462284,2.03107027,228.0,227.95,5.05692695]
[1759992462706,2.03107027,228.0,227.95,0.67]
[1759992462905,2.03107027,228.0,227.94,35.20710992]
[1759992463086,2.03107027,228.0,227.95,0.67]
[1759992463800,2.03107027,228.0,227.96,4.38673451]
[1759992464908,32.85107027,228.01,227.96,4.38673451]
[1759992465089,30.82,228.01,227.97,0.69]
[1759992465289,30.82,228.01,227.96,4.38673451]
[1759992465603,30.82,228.01,227.96,5.07673451]
[1759992465788,6.41667321,228.02,227.96,5.07673451]
[1759992467105,2.03107027,227.99,227.92,0.69]
[1759992467328,0.68,227.98,227.92,31.49]